fUSD/lending_fUSD_20250105
["ID","MTS","AMOUNT","RATE_DAILY","PERIOD"]
[347714230,1736077866534,-1070.96,9.315e-05,2]
[347714231,1736077866544,-500.0,9.315e-05,2]
[347714232,1736077866554,-500.0,9.315e-05,2]
[347714233,1736077866564,-578.08,9.315e-05,2]
[347714234,1736077866573,-1399.43,9.315e-05,2]
[347714235,1736077866583,-500.0,9.315e-05,2]
[347714236,1736077866593,-500.0,9.315e-05,2]
[347714237,1736077866602,-500.0,9.315e-05,2]
[347714238,1736077866612,-500.0,9.315e-05,2]
[347714239,1736077866623,-500.0,9.315e-05,2]
[347714240,1736077866632,-500.0,9.315e-05,2]
[347714241,1736077866642,-519.71,9.315e-05,2]
[347714242,1736077866652,-500.0,9.315e-05,2]
[347714243,1736077866662,-500.0,9.315e-05,2]
[347714244,1736077866672,-732.34,9.315e-05,2]
[347714245,1736077866681,-707.82,9.315e-05,2]
[347714246,1736077866692,-740.06,9.315e-05,2]
[347714247,1736077866702,-2098.99,9.315e-05,2]
[347714248,1736077866712,-500.0,9.315e-05,2]
[347714249,1736077866722,-796.45,9.315e-05,2]
[347714250,1736077866731,-6012.7,9.315e-05,2]
[347714251,1736077866741,-500.0,9.315e-05,2]
[347714252,1736077866751,-500.0,9.315e-05,2]
[347714253,1736077866761,-853.48,9.315e-05,2]
[347714254,1736077866771,-500.0,9.315e-05,2]
[347714255,1736077866781,-371.01,9.315e-05,2]
[347714256,1736077866791,-5593.14,9.315e-05,2]
[347714257,1736077866800,-2047.77,9.315e-05,2]
[347714258,1736077866810,-500.0,9.315e-05,2]
[347714259,1736077866820,-964.08,9.315e-05,2]
[347714260,1736077866830,-933.81,9.315e-05,2]
[347714261,1736077866839,-500.0,9.315e-05,2]
[347714262,1736077866849,-702.7,9.315e-05,2]
[347714263,1736077866859,-350.49,9.315e-05,2]
[347714264,1736077866868,-700.64,9.315e-05,2]
[347714265,1736077866878,-789.92,9.315e-05,2]
[347714266,1736077866887,-500.0,9.315e-05,2]
[347714267,1736077866897,-1141.75,9.315e-05,2]
[347714268,1736077866908,-500.0,9.315e-05,2]
[347714269,1736077866918,-500.0,9.315e-05,2]
[347714270,1736077866928,-500.0,9.315e-05,2]
[347714271,1736077866939,-500.0,9.315e-05,2]
[347714272,1736077866948,-861.87,9.315e-05,2]
[347714273,1736077866960,-579.03,9.315e-05,2]
[347714274,1736077866970,-621.86,9.315e-05,2]
[347714275,1736077866980,-3575.88,9.315e-05,2]
[347714276,1736077866990,-675.19,9.315e-05,2]
[347714277,1736077867000,-631.93,9.315e-05,2]
[347714278,1736077867009,-1451.45,9.315e-05,2]
[347714279,1736077867018,-1044.61,9.315e-05,2]
[347714280,1736077867028,-500.0,9.315e-05,2]
[347714281,1736077867038,-796.85,9.315e-05,2]
[347714282,1736077867047,-891.67,9.315e-05,2]
[347714283,1736077867057,-348.75,9.315e-05,2]
[347714284,1736077867067,-558.0,9.315e-05,2]
[347714285,1736077867077,-553.01,9.315e-05,2]
[347714286,1736077867087,-500.0,9.315e-05,2]
[347714287,1736077867096,-2422.63,9.315e-05,2]
[347714288,1736077867106,-1153.73,9.315e-05,2]
[347714289,1736077867115,-1238.51,9.315e-05,2]
[347714290,1736077867124,-882.11,9.315e-05,2]
[347714291,1736077867133,-500.0,9.315e-05,2]
[347714292,1736077867143,-500.0,9.315e-05,2]
[347714293,1736077867152,-936.55,9.315e-05,2]
[347714294,1736077867162,-4094.6,9.315e-05,2]
[347714295,1736077867171,-598.63,9.315e-05,2]
[347714296,1736077867181,-1565.14,9.315e-05,2]
[347714297,1736077867191,-1545.81,9.315e-05,2]
[347714298,1736077867201,-5467.77,9.315e-05,2]
[347714299,1736077867211,-500.0,9.315e-05,2]
[347714300,1736077867220,-500.0,9.315e-05,2]
[347714301,1736077867230,-500.0,9.315e-05,2]
[347714302,1736077867239,-4960.26,9.315e-05,2]
[347714303,1736077867248,-500.0,9.315e-05,2]
[347714304,1736077867319,-920.55,9.315e-05,2]
[347714305,1736077867329,-500.0,9.315e-05,2]
[347714306,1736077867339,-500.0,9.315e-05,2]
[347714307,1736077867349,-1172.65244,9.315e-05,2]
[347714308,1736077867359,-500.0,9.315e-05,2]
[347714309,1736077867368,-861.97,9.315e-05,2]
[347714310,1736077867378,-1676.16,9.315e-05,2]
[347714311,1736077867388,-1506.56,9.315e-05,2]
[347714312,1736077867399,-544.29,9.315e-05,2]
[347714313,1736077867408,-500.0,9.315e-05,2]
[347714314,1736077867417,-500.0,9.315e-05,2]
[347714315,1736077867427,-362.88,9.315e-05,2]
[347714316,1736077867440,-5003.34,9.315e-05,2]
[347714317,1736077867450,-500.0,9.315e-05,2]
[347714318,1736077867459,-500.0,9.315e-05,2]
[347714319,1736077867469,-500.0,9.315e-05,2]
[347714320,1736077867479,-5455.76,9.315e-05,2]
[347714321,1736077867489,-736.71,9.315e-05,2]
[347714322,1736077867498,-500.0,9.315e-05,2]
[347714323,1736077867507,-500.13,9.315e-05,2]
[347714324,1736077867519,-4518.67,9.315e-05,2]
[347714325,1736077867529,-500.0,9.315e-05,2]
[347714326,1736077867539,-1188.36,9.315e-05,2]
[347714327,1736077867548,-1113.222451,9.315e-05,2]
[347714328,1736077867558,-500.0,9.315e-05,2]
[347714329,1736077867567,-500.0,9.315e-05,2]
[347714330,1736077867576,-1501.17,9.315e-05,2]
[347714331,1736077867586,-6256.28,9.315e-05,2]
[347714332,1736077867595,-500.0,9.315e-05,2]
[347714333,1736077867605,-12614.89,9.315e-05,2]
[347714334,1736077867614,-1877.08,9.315e-05,2]
[347714335,1736077867624,-174.4,9.315e-05,2]
[347714336,1736077867634,-500.0,9.315e-05,2]
[347714337,1736077867643,-500.0,9.315e-05,2]
[347714338,1736077867652,-5948.84,9.315e-05,2]
[347714339,1736077867662,-621.96829565,9.315e-05,2]
[347714340,1736077867671,-500.0,9.315e-05,2]
[347714341,1736077867683,-1336.8,9.315e-05,2]
[347714342,1736077867693,-500.0,9.315e-05,2]
[347714343,1736077867702,-500.0,9.315e-05,2]
[347714344,1736077867712,-500.0,9.315e-05,2]
[347714345,1736077867722,-500.0,9.315e-05,2]
[347714346,1736077867731,-656.54,9.315e-05,2]
[347714347,1736077867742,-16452.68,9.315e-05,2]
[347714348,1736077867751,-500.0,9.315e-05,2]
[347714349,1736077867761,-467.3,9.315e-05,2]
[347714350,1736077867770,-656.81,9.315e-05,2]
[347714351,1736077867779,-1330.53,9.315e-05,2]
[347714352,1736077867789,-2520.72,9.315e-05,2]
[347714353,1736077867799,-500.0,9.315e-05,2]
[347714354,1736077867809,-500.0,9.315e-05,2]
[347714355,1736077867818,-579.66,9.315e-05,2]
[347714356,1736077867828,-500.0,9.315e-05,2]
[347714357,1736077867837,-500.0,9.315e-05,2]
[347714358,1736077867846,-1361.37,9.315e-05,2]
[347714359,1736077867856,-1152.65,9.315e-05,2]
[347714360,1736077867865,-500.0,9.315e-05,2]
[347714361,1736077867875,-1619.18,9.315e-05,2]
[347714362,1736077867884,-500.0,9.315e-05,2]
[347714363,1736077867893,-566.16,9.315e-05,2]
[347714364,1736077867903,-1628.83,9.315e-05,2]
[347714365,1736077867912,-1073.36,9.315e-05,2]
[347714366,1736077867922,-1774.99,9.315e-05,2]
[347714367,1736077867932,-500.0,9.315e-05,2]
[347714368,1736077867942,-779.56,9.315e-05,2]
[347714369,1736077867951,-500.0,9.315e-05,2]
[347714370,1736077867960,-2695.05,9.315e-05,2]
[347714371,1736077867969,-1125.17,9.315e-05,2]
[347714372,1736077867979,-500.0,9.315e-05,2]
[347714373,1736077867988,-763.52,9.315e-05,2]
[347714374,1736077867997,-2863.65,9.315e-05,2]
[347714375,1736077868007,-263.34,9.315e-05,2]
[347714376,1736077868016,-1594.61,9.315e-05,2]
[347714377,1736077868026,-1889.76,9.315e-05,2]
[347714378,1736077868035,-500.0,9.315e-05,2]
[347714379,1736077868044,-1696.48,9.315e-05,2]
[347714380,1736077868054,-500.0,9.315e-05,2]
[347714381,1736077868063,-500.0,9.315e-05,2]
[347714382,1736077868073,-2621.36,9.315e-05,2]
[347714383,1736077868083,-500.0,9.315e-05,2]
[347714384,1736077868093,-1366.06,9.315e-05,2]
[347714385,1736077868103,-500.0,9.315e-05,2]
[347714386,1736077868113,-500.0,9.315e-05,2]
[347714387,1736077868122,-1255.03,9.315e-05,2]
[347714388,1736077868131,-500.0,9.315e-05,2]
[347714389,1736077868142,-1597.01,9.315e-05,2]
[347714390,1736077868151,-500.0,9.315e-05,2]
[347714391,1736077868160,-501.17,9.315e-05,2]
[347714392,1736077868169,-500.0,9.315e-05,2]
[347714393,1736077868179,-500.0,9.315e-05,2]
[347714394,1736077868192,-4702.44,9.315e-05,2]
[347714395,1736077868201,-500.0,9.315e-05,2]
[347714396,1736077868210,-500.0,9.315e-05,2]
[347714397,1736077868220,-500.0,9.315e-05,2]
[347714398,1736077868229,-500.0,9.315e-05,2]
[347714399,1736077868239,-178.35,9.315e-05,2]
[347714400,1736077868249,-500.0,9.315e-05,2]
[347714401,1736077868259,-4016.18,9.315e-05,2]
[347714402,1736077868269,-1438.49,9.315e-05,2]
[347714403,1736077868279,-500.0,9.315e-05,2]
[347714404,1736077868288,-1134.87,9.315e-05,2]
[347714405,1736077868298,-500.0,9.315e-05,2]
[347714406,1736077868307,-1007.93,9.315e-05,2]
[347714407,1736077868317,-5853.8,9.315e-05,2]
[347714408,1736077868326,-500.0,9.315e-05,2]
[347714409,1736077868335,-1188.37,9.315e-05,2]
[347714410,1736077868345,-500.0,9.315e-05,2]
[347714411,1736077868355,-298.094105,9.315e-05,2]
[347714412,1736077868365,-799.75,9.315e-05,2]
[347714413,1736077868374,-1191.39,9.315e-05,2]
[347714414,1736077868384,-500.0,9.315e-05,2]
[347714415,1736077868393,-500.0,9.315e-05,2]
[347714416,1736077868402,-500.0,9.315e-05,2]
[347714417,1736077868412,-500.0,9.315e-05,2]
[347714418,1736077868421,-743.67,9.315e-05,2]
[347714419,1736077868431,-500.0,9.315e-05,2]
[347714420,1736077868444,-624.57,9.315e-05,2]
[347714421,1736077868453,-500.0,9.315e-05,2]
[347714422,1736077868463,-10885.06,9.315e-05,2]
[347714423,1736077868472,-8164.25,9.315e-05,2]
[347714424,1736077868481,-500.0,9.315e-05,2]
[347714425,1736077868491,-2029.13,9.315e-05,2]
[347714426,1736077868501,-500.0,9.315e-05,2]
[347714427,1736077868510,-826.38,9.315e-05,2]
[347714428,1736077868519,-1294.01,9.315e-05,2]
[347714429,1736077868529,-847.41,9.315e-05,2]
[347714430,1736077868538,-500.0,9.315e-05,2]
[347714431,1736077868547,-1922.04,9.315e-05,2]
[347714432,1736077868556,-4178.12,9.315e-05,2]
[347714433,1736077868566,-500.0,9.315e-05,2]
[347714434,1736077868575,-1674.94,9.315e-05,2]
[347714435,1736077868584,-282.754514,9.315e-05,2]
[347714436,1736077868593,-500.0,9.315e-05,2]
[347714437,1736077868603,-500.0,9.315e-05,2]
[347714438,1736077868612,-614.12,9.315e-05,2]
[347714439,1736077868621,-500.0,9.315e-05,2]
[347714440,1736077868631,-500.0,9.315e-05,2]
[347714441,1736077868640,-2015.35,9.315e-05,2]
[347714442,1736077868650,-500.0,9.315e-05,2]
[347714443,1736077868659,-500.0,9.315e-05,2]
[347714444,1736077868669,-11657.42,9.315e-05,2]
[347714445,1736077868678,-2860.37,9.315e-05,2]
[347714446,1736077868690,-776.51,9.315e-05,2]
[347714447,1736077868700,-500.0,9.315e-05,2]
[347714448,1736077868710,-1719.67,9.315e-05,2]
[347714449,1736077868719,-1055.64,9.315e-05,2]
[347714450,1736077868728,-500.0,9.315e-05,2]
[347714451,1736077868738,-500.0,9.315e-05,2]
[347714452,1736077868747,-4243.83,9.315e-05,2]
[347714453,1736077868757,-500.0,9.315e-05,2]
[347714454,1736077868766,-6577.83,9.315e-05,2]
[347714455,1736077868775,-500.0,9.315e-05,2]
[347714456,1736077868785,-1904.42,9.315e-05,2]
[347714457,1736077868795,-712.42,9.315e-05,2]
[347714458,1736077868804,-4673.99,9.315e-05,2]
[347714459,1736077868814,-500.0,9.315e-05,2]
[347714460,1736077868823,-813.11,9.315e-05,2]
[347714461,1736077868833,-7032.4,9.315e-05,2]
[347714462,1736077868842,-911.49,9.315e-05,2]
[347714463,1736077868851,-4504.93,9.315e-05,2]
[347714464,1736077868861,-500.0,9.315e-05,2]
[347714465,1736077868871,-1698.03,9.315e-05,2]
[347714466,1736077868880,-1145.98,9.315e-05,2]
[347714467,1736077868889,-500.0,9.315e-05,2]
[347714468,1736077868899,-710.05,9.315e-05,2]
[347714469,1736077868908,-500.0,9.315e-05,2]
[347714470,1736077868917,-500.0,9.315e-05,2]
[347714471,1736077868927,-500.0,9.315e-05,2]
[347714472,1736077868938,-773.58,9.315e-05,2]
[347714473,1736077868947,-892.05,9.315e-05,2]
[347714474,1736077868956,-500.0,9.315e-05,2]
[347714475,1736077868965,-500.0,9.315e-05,2]
[347714476,1736077868975,-500.0,9.315e-05,2]
[347714477,1736077868984,-1151.78,9.315e-05,2]
[347714478,1736077868994,-1067.33,9.315e-05,2]
[347714479,1736077869004,-3036.51,9.315e-05,2]
[347714480,1736077869013,-2458.64,9.315e-05,2]
[347714481,1736077869023,-1454.12,9.315e-05,2]
[347714482,1736077869033,-1718.34,9.315e-05,2]
[347714483,1736077869043,-851.29,9.315e-05,2]
[347714484,1736077869052,-500.0,9.315e-05,2]
[347714485,1736077869061,-3993.07,9.315e-05,2]
[347714486,1736077869070,-500.0,9.315e-05,2]
[347714487,1736077869079,-500.0,9.315e-05,2]
[347714488,1736077869088,-500.0,9.315e-05,2]
[347714489,1736077869099,-2096.82,9.315e-05,2]
[347714490,1736077869108,-1089.35,9.315e-05,2]
[347714491,1736077869117,-500.0,9.315e-05,2]
[347714492,1736077869127,-892.7,9.315e-05,2]
[347714493,1736077869136,-500.0,9.315e-05,2]
[347714494,1736077869146,-1286.37,9.315e-05,2]
[347714495,1736077869155,-500.0,9.315e-05,2]
[347714496,1736077869165,-500.0,9.315e-05,2]
[347714497,1736077869174,-858.47,9.315e-05,2]
[347714498,1736077869183,-500.0,9.315e-05,2]
[347714499,1736077869193,-500.0,9.315e-05,2]
[347714500,1736077869203,-1127.93,9.315e-05,2]
[347714501,1736077869212,-1752.2,9.315e-05,2]
[347714502,1736077869222,-1122.56,9.315e-05,2]
[347714503,1736077869231,-500.0,9.315e-05,2]
[347714504,1736077869241,-245.40244956,9.315e-05,2]
[347714505,1736077869251,-2522.13,9.315e-05,2]
[347714506,1736077869261,-1826.18,9.315e-05,2]
[347714507,1736077869271,-960.74,9.315e-05,2]
[347714508,1736077869280,-691.4,9.315e-05,2]
[347714509,1736077869289,-500.0,9.315e-05,2]
[347714510,1736077869298,-1666.61,9.315e-05,2]
[347714511,1736077869307,-1167.04,9.315e-05,2]
[347714512,1736077869316,-991.36,9.315e-05,2]
[347714513,1736077869326,-929.99,9.315e-05,2]
[347714514,1736077869335,-299.68,9.315e-05,2]
[347714515,1736077869344,-1957.4,9.397e-05,2]
[347714516,1736077869353,-429.51484354,9.402e-05,2]
[347714517,1736077869362,-437.68,9.425e-05,2]
[347714518,1736077869371,-771.75,9.425e-05,2]
[347714519,1736077869381,-437.68,9.425e-05,2]
[347714520,1736077869390,-771.75,9.425e-05,2]
[347714521,1736077869399,-771.75,9.425e-05,2]
[347714522,1736077869409,-437.68,9.425e-05,2]
[347714523,1736077869418,-437.68,9.425e-05,2]
[347714524,1736077869428,-771.75,9.425e-05,2]
[347714525,1736077869445,-437.33,9.425e-05,2]
[347714526,1736077869455,-771.15,9.425e-05,2]
[347714527,1736077869464,-1611.05,9.425e-05,2]
[347714528,1736077869473,-637.54,9.43e-05,2]
[347714529,1736077869483,-500.0,9.435e-05,2]
[347714530,1736077869492,-7254.62416974,9.557e-05,2]
[347714531,1736077869502,-500.0,9.572e-05,2]
[347714532,1736077869512,-1896.22,9.588e-05,2]
[347714533,1736077869521,-1465.16,9.588e-05,2]
[347714534,1736077869532,-2361.91,9.589e-05,2]
[347714535,1736077869542,-1674.92,9.589e-05,2]
[347714536,1736077869551,-500.0,9.589e-05,2]
[347714537,1736077869561,-1621.98,9.589e-05,2]
[347714538,1736077869571,-500.0,9.589e-05,2]
[347714539,1736077869580,-500.0,9.589e-05,2]
[347714540,1736077869590,-500.0,9.589e-05,2]
[347714541,1736077869599,-500.0,9.589e-05,2]
[347714542,1736077869609,-500.0,9.589e-05,2]
[347714543,1736077869619,-500.0,9.589e-05,2]
[347714544,1736077869629,-3386.48,9.589e-05,2]
[347714545,1736077869639,-500.0,9.589e-05,2]
[347714546,1736077869650,-503.47,9.589e-05,2]
[347714547,1736077869659,-500.0,9.589e-05,2]
[347714548,1736077869668,-500.0,9.589e-05,2]
[347714549,1736077869678,-4493.65,9.589e-05,2]
[347714550,1736077869689,-655.26,9.589e-05,2]
[347714551,1736077869699,-505.26,9.589e-05,2]
[347714552,1736077869709,-500.0,9.589e-05,2]
[347714553,1736077869718,-500.0,9.589e-05,2]
[347714554,1736077869728,-500.0,9.589e-05,2]
[347714555,1736077869738,-3455.18,9.589e-05,2]
[347714556,1736077869748,-500.0,9.589e-05,2]
[347714557,1736077869757,-500.0,9.589e-05,2]
[347714558,1736077869766,-500.0,9.589e-05,2]
[347714559,1736077869776,-470.82259752,9.589e-05,2]
[347714560,1736077869785,-500.0,9.589e-05,2]
[347714561,1736077869794,-500.0,9.589e-05,2]
[347714562,1736077869804,-500.0,9.589e-05,2]
[347714563,1736077869813,-500.0,9.589e-05,2]
[347714564,1736077869822,-503.65,9.589e-05,2]
[347714565,1736077869832,-500.0,9.589e-05,2]
[347714566,1736077869841,-2093.91,9.589e-05,2]
[347714567,1736077869851,-535.39,9.589e-05,2]
[347714568,1736077869860,-500.0,9.589e-05,2]
[347714569,1736077869870,-500.0,9.589e-05,2]
[347714570,1736077869879,-500.0,9.589e-05,2]
[347714571,1736077869888,-500.0,9.589e-05,2]
[347714572,1736077869898,-4909.36,9.589e-05,2]
[347714573,1736077869907,-500.0,9.589e-05,2]
[347714574,1736077869916,-768.45,9.589e-05,2]
[347714575,1736077869925,-500.0,9.589e-05,2]
[347714576,1736077869936,-501.86,9.589e-05,2]
[347714577,1736077869946,-660.06,9.589e-05,2]
[347714578,1736077869955,-517.18,9.589e-05,2]
[347714579,1736077869964,-500.0,9.589e-05,2]
[347714580,1736077869974,-1439.68,9.589e-05,2]
[347714581,1736077869983,-597.85,9.589e-05,2]
[347714582,1736077869992,-500.0,9.589e-05,2]
[347714583,1736077870001,-500.0,9.589e-05,2]
[347714584,1736077870011,-1447.38,9.589e-05,2]
[347714585,1736077870020,-500.0,9.589e-05,2]
[347714586,1736077870029,-500.0,9.589e-05,2]
[347714587,1736077870038,-617.4,9.589e-05,2]
[347714588,1736077870048,-500.0,9.589e-05,2]
[347714589,1736077870057,-890.36,9.589e-05,2]
[347714590,1736077870066,-500.0,9.589e-05,2]
[347714591,1736077870075,-897.02,9.589e-05,2]
[347714592,1736077870085,-500.0,9.589e-05,2]
[347714593,1736077870094,-500.0,9.589e-05,2]
[347714594,1736077870103,-514.55,9.589e-05,2]
[347714595,1736077870112,-713.57,9.589e-05,2]
[347714596,1736077870122,-500.0,9.589e-05,2]
[347714597,1736077870131,-606.82,9.589e-05,2]
[347714598,1736077870141,-500.0,9.589e-05,2]
[347714599,1736077870150,-500.0,9.589e-05,2]
[347714600,1736077870159,-757.44,9.589e-05,2]
[347714601,1736077870168,-500.0,9.589e-05,2]
[347714602,1736077870178,-1184.81,9.589e-05,2]
[347714603,1736077870188,-500.0,9.589e-05,2]
[347714604,1736077870198,-500.0,9.589e-05,2]
[347714605,1736077870207,-722.49,9.589e-05,2]
[347714606,1736077870216,-500.0,9.589e-05,2]
[347714607,1736077870226,-1641.6,9.589e-05,2]
[347714608,1736077870236,-758.18,9.589e-05,2]
[347714609,1736077870246,-564.09,9.589e-05,2]
[347714610,1736077870255,-2326.73,9.589e-05,2]
[347714611,1736077870265,-874.81,9.589e-05,2]
[347714612,1736077870274,-1289.57,9.589e-05,2]
[347714613,1736077870284,-500.0,9.589e-05,2]
[347714614,1736077870293,-603.7,9.589e-05,2]
[347714615,1736077870303,-1135.34,9.589e-05,2]
[347714616,1736077870312,-916.01,9.589e-05,2]
[347714617,1736077870322,-583.76,9.589e-05,2]
[347714618,1736077870331,-500.0,9.589e-05,2]
[347714619,1736077870340,-551.11,9.589e-05,2]
[347714620,1736077870350,-1685.45,9.589e-05,2]
[347714621,1736077870359,-1340.17,9.589e-05,2]
[347714622,1736077870368,-582.22,9.589e-05,2]
[347714623,1736077870377,-2464.65,9.589e-05,2]
[347714624,1736077870387,-900.6,9.589e-05,2]
[347714625,1736077870397,-1329.92,9.589e-05,2]
[347714626,1736077870406,-786.78,9.589e-05,2]
[347714627,1736077870416,-743.02,9.589e-05,2]
[347714628,1736077870426,-1147.49,9.589e-05,2]
[347714629,1736077870437,-500.0,9.589e-05,2]
[347714630,1736077870449,-690.8,9.589e-05,2]
[347714631,1736077870458,-500.0,9.589e-05,2]
[347714632,1736077870468,-597.29,9.589e-05,2]
[347714633,1736077870477,-527.65,9.589e-05,2]
[347714634,1736077870487,-657.19,9.589e-05,2]
[347714635,1736077870495,-500.0,9.589e-05,2]
[347714636,1736077870504,-713.19,9.589e-05,2]
[347714637,1736077870513,-1630.28,9.589e-05,2]
[347714638,1736077870523,-865.01,9.589e-05,2]
[347714639,1736077870533,-560.06,9.589e-05,2]
[347714640,1736077870541,-656.48,9.589e-05,2]
[347714641,1736077870551,-500.0,9.589e-05,2]
[347714642,1736077870561,-799.98,9.589e-05,2]
[347714643,1736077870570,-1370.84,9.589e-05,2]
[347714644,1736077870579,-500.0,9.589e-05,2]
[347714645,1736077870588,-720.23,9.589e-05,2]
[347714646,1736077870598,-1174.05,9.589e-05,2]
[347714647,1736077870607,-535.83,9.589e-05,2]
[347714648,1736077870617,-500.0,9.589e-05,2]
[347714649,1736077870626,-1100.99,9.589e-05,2]
[347714650,1736077870636,-349.39,9.589e-05,2]
[347714651,1736077870645,-742.07,9.589e-05,2]
[347714652,1736077870654,-846.77,9.589e-05,2]
[347714653,1736077870665,-1559.95,9.589e-05,2]
[347714654,1736077870674,-788.73,9.589e-05,2]
[347714655,1736077870683,-500.0,9.589e-05,2]
[347714656,1736077870697,-1389.11,9.589e-05,2]
[347714657,1736077870710,-2013.48,9.589e-05,2]
[347714658,1736077870720,-500.0,9.589e-05,2]
[347714659,1736077870730,-2906.9,9.589e-05,2]
[347714660,1736077870740,-500.0,9.589e-05,2]
[347714661,1736077870750,-500.0,9.589e-05,2]
[347714662,1736077870760,-1498.5,9.589e-05,2]
[347714663,1736077870770,-699.23,9.589e-05,2]
[347714664,1736077870780,-1506.83,9.589e-05,2]
[347714665,1736077870789,-770.93,9.589e-05,2]
[347714666,1736077870799,-1218.28,9.589e-05,2]
[347714667,1736077870809,-330.8,9.589e-05,2]
[347714668,1736077870818,-1089.33,9.589e-05,2]
[347714669,1736077870828,-500.0,9.589e-05,2]
[347714670,1736077870837,-500.0,9.589e-05,2]
[347714671,1736077870847,-820.66,9.589e-05,2]
[347714672,1736077870857,-632.38,9.589e-05,2]
[347714673,1736077870867,-500.0,9.589e-05,2]
[347714674,1736077870876,-686.96,9.589e-05,2]
[347714675,1736077870886,-978.19,9.589e-05,2]
[347714676,1736077870899,-890.17,9.589e-05,2]
[347714677,1736077870908,-500.0,9.589e-05,2]
[347714678,1736077870918,-500.0,9.589e-05,2]
[347714679,1736077870927,-500.0,9.589e-05,2]
[347714680,1736077870937,-744.13,9.589e-05,2]
[347714681,1736077870946,-2315.0,9.589e-05,2]
[347714682,1736077870955,-500.0,9.589e-05,2]
[347714683,1736077870964,-930.54,9.589e-05,2]
[347714684,1736077870974,-721.43,9.589e-05,2]
[347714685,1736077870983,-500.0,9.589e-05,2]
[347714686,1736077870994,-1252.67,9.589e-05,2]
[347714687,1736077871003,-500.0,9.589e-05,2]
[347714688,1736077871012,-500.0,9.589e-05,2]
[347714689,1736077871022,-2913.28,9.589e-05,2]
[347714690,1736077871031,-774.57,9.589e-05,2]
[347714691,1736077871040,-897.91,9.589e-05,2]
[347714692,1736077871050,-2177.81,9.589e-05,2]
[347714693,1736077871059,-511.93,9.589e-05,2]
[347714694,1736077871069,-2171.65,9.589e-05,2]
[347714695,1736077871079,-500.0,9.589e-05,2]
[347714696,1736077871089,-2317.89,9.589e-05,2]
[347714697,1736077871099,-867.55,9.589e-05,2]
[347714698,1736077871109,-527.01,9.589e-05,2]
[347714699,1736077871119,-803.4,9.589e-05,2]
[347714700,1736077871129,-1302.69,9.589e-05,2]
[347714701,1736077871139,-1086.66,9.589e-05,2]
[347714702,1736077871148,-749.15,9.589e-05,2]
[347714703,1736077871158,-565.13,9.589e-05,2]
[347714704,1736077871168,-856.06,9.589e-05,2]
[347714705,1736077871178,-1986.45,9.589e-05,2]
[347714706,1736077871189,-623.49,9.589e-05,2]
[347714707,1736077871199,-2363.84,9.589e-05,2]
[347714708,1736077871209,-764.85,9.589e-05,2]
[347714709,1736077871219,-727.71,9.589e-05,2]
[347714710,1736077871228,-1852.11,9.589e-05,2]
[347714711,1736077871238,-584.32,9.589e-05,2]
[347714712,1736077871248,-640.46,9.589e-05,2]
[347714713,1736077871257,-1550.64,9.589e-05,2]
[347714714,1736077871267,-1783.14,9.589e-05,2]
[347714715,1736077871277,-531.36,9.589e-05,2]
[347714716,1736077871287,-1213.26,9.589e-05,2]
[347714717,1736077871297,-500.0,9.589e-05,2]
[347714718,1736077871308,-500.0,9.589e-05,2]
[347714719,1736077871317,-1908.11,9.589e-05,2]
[347714720,1736077871328,-500.0,9.589e-05,2]
[347714721,1736077871338,-641.67,9.589e-05,2]
[347714722,1736077871348,-3065.63,9.589e-05,2]
[347714723,1736077871358,-3640.86,9.589e-05,2]
[347714724,1736077871368,-500.0,9.589e-05,2]
[347714725,1736077871378,-1070.96,9.589e-05,2]
[347714726,1736077871387,-500.0,9.589e-05,2]
[347714727,1736077871397,-500.0,9.589e-05,2]
[347714728,1736077871407,-578.08,9.589e-05,2]
[347714729,1736077871416,-1399.43,9.589e-05,2]